lending/lending_fUSD_20240111
["ID","MTS","AMOUNT","RATE_DAILY","PERIOD"]
[311241853,1704990652863,-1048.29349039,0.00041,2]
[311241854,1704990652876,-2454.8226947,0.00041,2]
[311241855,1704990652889,-26925.22699838,0.00041,2]
[311241857,1704990652907,-7352.08020314,0.00041,2]
[311241859,1704990652919,-1964.0071397,0.00041,2]
[311241861,1704990652932,-80694.17258785,0.00041,2]
[311241863,1704990652945,-26600.33975596,0.00041,2]
[311241865,1704990652957,-1359.96146146,0.00041,2]
[311241866,1704990652990,-0.0061685,0.00041,2]
[311241873,1704990653295,-436.53333476,0.00024896,2]
[311241874,1704990653305,-406.04618719,0.00027396,2]
[311241875,1704990653314,-60.42060188,0.00039582,7]
[311241876,1704990653333,-1301.03492512,0.00039582,7]
[311241877,1704990653345,-113.06938987,0.00041,2]
[311241878,1704990653358,-415.51326419,0.00041,2]
[311241880,1704990653370,-1344.00099782,0.00041,2]
[311241881,1704990653382,-2298.25,0.00041,2]
[311241882,1704990653393,-600.0,0.00041,2]
[311241883,1704990653407,-2591.68,0.00041,2]
[311241884,1704990653471,-754.27,0.00041,2]
[311241885,1704990653484,-337.25761487,0.00041,2]
[311241903,1704990653697,-4410.92558142,0.00041,2]
[311241905,1704990653711,-462.24999984,0.00041,2]
[311241907,1704990653724,-119130.3148822,0.00041,2]
[311241909,1704990653734,-1005.62549095,0.00041,2]
[311241911,1704990653744,-750.0,0.00041,3]
[311241913,1704990653753,-2003.88,0.00041,2]
[311241915,1704990653763,-5000.0,0.00041,30]
[311241917,1704990653773,-150.0,0.00041,14]
[311241920,1704990653783,-19673.0,0.00041049,2]
[311241922,1704990653793,-3759.712,0.00041049,2]
[311241924,1704990653803,-150.0,0.00041049,2]
[311241926,1704990653813,-1846.0,0.00041049,2]
[311241928,1704990653824,-834.0,0.00041049,2]
[311241930,1704990653835,-944.0,0.00041049,2]
[311241932,1704990653850,-1234.0,0.00041049,2]
[311241934,1704990653861,-28.63498058,0.00041049,2]
[311241936,1704990653874,-1222.36501942,0.00041049,2]
[311241938,1704990653884,-285.335121,0.00041067,2]
[311241940,1704990653894,-1546.38044,0.00041067,2]
[311241942,1704990653903,-1062.973258,0.00041067,2]
[311241944,1704990653913,-531.48663,0.00041067,2]
[311241946,1704990653923,-773.19022,0.00041067,2]
[311241948,1704990653933,-1062.973258,0.00041067,2]
[311241950,1704990653943,-1546.380441,0.00041067,2]
[311241952,1704990653954,-855.576108,0.00041067,2]
[311241954,1704990653964,-500.0,0.00041095,2]
[311241956,1704990653974,-187.5,0.00041095,2]
[311241958,1704990653984,-375.0,0.00041095,2]
[311241960,1704990653995,-562.5,0.00041095,2]
[311241962,1704990654004,-750.0,0.00041095,2]
[311241964,1704990654015,-548.025,0.00041095,2]
[311241966,1704990654026,-776.49,0.00041095,7]
[311241968,1704990654036,-776.49,0.00041095,12]
[311241970,1704990654046,-776.49,0.00041095,17]
[311241973,1704990654057,-776.49,0.00041095,22]
[311241975,1704990654067,-776.49,0.00041095,27]
[311241977,1704990654078,-776.49,0.00041095,32]
[311241979,1704990654089,-776.49,0.00041095,37]
[311241981,1704990654103,-776.49,0.00041095,42]
[311241983,1704990654114,-776.49,0.00041095,47]
[311241985,1704990654125,-776.49,0.00041095,52]
[311241987,1704990654136,-776.49,0.00041095,57]
[311241989,1704990654149,-776.49,0.00041095,62]
[311241991,1704990654162,-776.49,0.00041095,67]
[311241993,1704990654173,-776.49,0.00041095,72]
[311241995,1704990654183,-776.49,0.00041095,77]
[311241997,1704990654193,-776.49,0.00041095,82]
[311241999,1704990654205,-776.49,0.00041095,87]
[311242001,1704990654216,-776.49,0.00041095,92]
[311242003,1704990654226,-776.49,0.00041095,97]
[311242005,1704990654236,-776.49,0.00041095,102]
[311242007,1704990654247,-776.49,0.00041095,107]
[311242009,1704990654257,-776.49,0.00041095,112]
[311242011,1704990654269,-776.49,0.00041095,117]
[311242013,1704990654281,-776.58487971,0.00041095,120]
[311242015,1704990654292,-153.84,0.00041096,2]
[311242017,1704990654303,-239.88938086,0.00041096,2]
[311242019,1704990654314,-489.697059,0.00041096,14]
[311242021,1704990654330,-150.0,0.00041096,2]
[311242023,1704990654360,-3728.37,0.00041096,2]
[311242025,1704990654393,-180.0,0.00041096,2]
[311242027,1704990654406,-491.14,0.00041096,2]
[311242030,1704990654417,-8000.0,0.000411,5]
[311242032,1704990654427,-204.0,0.00041122,31]
[311242034,1704990654438,-500.0,0.0004115,2]
[311242036,1704990654447,-350.0,0.00041151,120]
[311242038,1704990654457,-500.0,0.00041205,2]
[311242040,1704990654466,-500.0,0.0004126,2]
[311242042,1704990654477,-150.0,0.00041284,3]
[311242044,1704990654487,-150.0,0.00041284,3]
[311242046,1704990654496,-242.09863262,0.00041352,30]
[311242048,1704990654507,-2310.21,0.000414,7]
[311242050,1704990654517,-3410.01,0.000414,7]
[311242052,1704990654528,-3299.94,0.000414,7]
[311242054,1704990654539,-17411.0,0.000414,5]
[311242056,1704990654549,-881.31,0.00041425,2]
[311242058,1704990654559,-288.88,0.00041489,2]
[311242060,1704990654569,-1930.0,0.00041489,2]
[311242062,1704990654580,-484.58,0.000415,4]
[311242064,1704990654593,-484.58,0.000415,4]
[311242066,1704990654603,-484.58,0.000415,4]
[311242068,1704990654613,-484.58,0.000415,4]
[311242070,1704990654622,-484.58,0.000415,4]
[311242073,1704990654632,-484.58,0.000415,4]
[311242075,1704990654642,-484.58,0.000415,4]
[311242077,1704990654652,-484.58,0.000415,4]
[311242079,1704990654663,-484.58,0.000415,4]
[311242080,1704990654673,-484.58,0.000415,4]
[311242082,1704990654684,-484.58,0.000415,4]
[311242085,1704990654694,-484.58,0.000415,4]
[311242087,1704990654704,-484.58,0.000415,4]
[311242089,1704990654715,-484.58,0.000415,4]
[311242091,1704990654724,-484.58,0.000415,4]
[311242092,1704990654734,-484.58,0.000415,4]
[311242095,1704990654744,-484.58,0.000415,4]
[311242097,1704990654754,-484.58,0.000415,4]
[311242099,1704990654763,-484.58,0.000415,4]
[311242101,1704990654775,-484.58,0.000415,4]
[311242103,1704990654784,-285.335121,0.00041561,30]
[311242105,1704990654795,-1546.38044,0.00041561,30]
[311242107,1704990654805,-1062.973258,0.00041561,30]
[311242109,1704990654814,-531.48663,0.00041561,30]
[311242110,1704990654825,-773.19022,0.00041561,30]
[311242113,1704990654835,-1062.973258,0.00041561,30]
[311242115,1704990654848,-1546.380441,0.00041561,30]
[311242117,1704990654858,-855.576108,0.00041561,30]
[311242119,1704990654869,-180.424921,0.00041561,30]
[311242121,1704990654880,-205.0,0.00041577,2]
[311242123,1704990654890,-6839.50522379,0.0004158,2]
[311242125,1704990654900,-150.0,0.00041778,3]
[311242127,1704990654911,-150.0,0.00041778,3]
[311242129,1704990654921,-666.0,0.0004178,2]
[311242146,1704990655093,-153.39321972,0.00041803,30]
[311242149,1704990655111,-190.27601325,0.0004183,16]
[311242150,1704990655121,-4233.98139669,0.0004183,2]
[311242152,1704990655131,-954.88599785,0.000419,2]
[311242154,1704990655141,-151.0,0.0004193,14]
[311242155,1704990655152,-151.0,0.0004193,14]
[311242156,1704990655161,-100.57708474,0.0004193,14]
[311242157,1704990655174,-50.42291526,0.0004193,14]
[311242158,1704990655185,-151.0,0.0004193,14]
[311242159,1704990655194,-151.0,0.0004193,14]
[311242160,1704990655204,-151.0,0.0004193,14]
[311242161,1704990655214,-282.0,0.0004193,14]
[311242162,1704990655223,-151.0,0.0004193,14]
[311242163,1704990655233,-179.773755,0.0004193,14]
[311242164,1704990655247,-179.773755,0.0004193,14]
[311242166,1704990655257,-151.0,0.0004193,14]
[311242168,1704990655267,-151.0,0.0004193,14]
[311242170,1704990655276,-229.43590457,0.0004193,2]
[311242172,1704990655286,-53750.85942361,0.0004193,2]
[311242174,1704990655298,-36718.62020123,0.0004193,2]
[311242177,1704990655310,-590504.98659018,0.0004193,2]
[311242179,1704990655321,-152.908646,0.0004193,14]
[311242181,1704990655331,-151.0,0.0004193,14]
[311242183,1704990655344,-151.0,0.0004193,14]
[311242185,1704990655354,-151.0,0.0004193,14]
[311242186,1704990655365,-293.684508,0.0004193,14]
[311242189,1704990655376,-151.0,0.0004193,14]
[311242191,1704990655386,-151.0,0.0004193,14]
[311242193,1704990655396,-151.0,0.0004193,14]
[311242194,1704990655406,-151.0,0.0004193,14]
[311242195,1704990655417,-151.0,0.0004193,14]
[311242196,1704990655427,-151.0,0.0004193,14]
[311242197,1704990655437,-151.0,0.0004193,14]
[311242198,1704990655448,-151.0,0.0004193,14]
[311242199,1704990655458,-726.906667,0.0004193,14]
[311242200,1704990655468,-726.906667,0.0004193,14]
[311242201,1704990655478,-151.0,0.0004193,14]
[311242202,1704990655489,-915.22154,0.0004193,14]
[311242203,1704990655498,-915.22154,0.0004193,14]
[311242204,1704990655508,-151.0,0.0004193,14]
[311242205,1704990655518,-151.0,0.0004193,14]
[311242206,1704990655527,-151.0,0.0004193,14]
[311242207,1704990655536,-151.0,0.0004193,14]
[311242208,1704990655546,-89.53051549,0.0004193,14]
[311242209,1704990655576,-61.46948451,0.0004193,14]
[311242210,1704990655586,-284.56636529,0.0004193,14]
[311242211,1704990655599,-151.0,0.0004193,14]
[311242212,1704990655609,-151.0,0.0004193,14]
[311242213,1704990655619,-1361.455527,0.0004193,14]
[311242214,1704990655629,-1361.455527,0.0004193,14]
[311242215,1704990655640,-150.0,0.0004197,120]
[311242216,1704990655650,-400.0,0.00041973,120]
[311242217,1704990655660,-150.0,0.0004198,120]
[311242218,1704990655671,-242.09863262,0.00041982,30]
[311242219,1704990655681,-500.0,0.00041987,21]
[311242220,1704990655691,-200.0,0.00041987,13]
[311242221,1704990655701,-196.54,0.0004199,120]
[311242222,1704990655711,-150.0,0.0004199,120]
[311242223,1704990655721,-521.97011643,0.00041998,2]
[311242224,1704990655731,-414.81058115,0.00041998,30]
[311242225,1704990655741,-822.71508083,0.00041999,7]
[311242226,1704990655751,-100000.0,0.00042,12]
[311242227,1704990655761,-188.219633,0.00042,7]
[311242228,1704990655772,-188.219633,0.00042,7]
[311242229,1704990655782,-151.0,0.00042,14]
[311242230,1704990655791,-1589.58652979,0.00042,40]
[311242231,1704990655802,-1155.68681828,0.00042,3]
[311242232,1704990655812,-7965.77004196,0.00042,10]
[311242233,1704990655822,-17720.53,0.00042,30]
[311242234,1704990655832,-9391.48656528,0.00042,2]
[311242235,1704990655842,-2310.21,0.00042,7]
[311242236,1704990655851,-3410.01,0.00042,7]
[311242237,1704990655861,-5000.0,0.00042,35]
[311242238,1704990655870,-157.09,0.00042048,2]
[311242239,1704990655880,-1875.38,0.00042048,2]
[311242240,1704990655890,-1127.273258,0.000421,2]
[311242241,1704990655899,-150.0,0.00042177,2]
[311242242,1704990655909,-489.697059,0.00042192,14]
[311242243,1704990655919,-247.6,0.00042205,2]
[311242244,1704990655929,-3011.76191805,0.00042222,30]
[311242245,1704990655940,-2156.55982993,0.00042264,5]
[311242246,1704990655950,-150.0,0.00042273,3]
[311242247,1704990655960,-150.0,0.00042273,3]
[311242248,1704990655970,-350.0,0.00042301,120]
[311242249,1704990655980,-2003.88,0.0004237,2]
[311242250,1704990655990,-158.65407434,0.0004242,30]
[311242251,1704990656000,-293.84,0.00042459,2]
[311242252,1704990656010,-314.07,0.00042459,2]
[311242253,1704990656020,-500.0,0.00042466,2]
[311242254,1704990656031,-1002.06543032,0.00042494,4]
[311242255,1704990656041,-6794.0,0.000425,5]
[311242256,1704990656052,-150.0,0.00042582,30]
[311242257,1704990656062,-2310.21,0.000426,7]
[311242258,1704990656072,-3410.01,0.000426,7]
[311242259,1704990656083,-242.09863262,0.00042619,30]
[311242260,1704990656093,-2986.0,0.00042675,2]
[311242261,1704990656103,-2986.0,0.00042675,2]
[311242262,1704990656114,-2986.0,0.00042675,2]
[311242263,1704990656124,-2986.0,0.00042675,2]
[311242264,1704990656134,-242.09863262,0.00042676,30]
[311242265,1704990656144,-371.0,0.00042689,30]
[311242266,1704990656154,-204.0,0.00042695,33]
[311242267,1704990656164,-484.58,0.000427,4]
[311242268,1704990656174,-484.58,0.000427,4]
[311242269,1704990656184,-484.58,0.000427,4]
[311242270,1704990656193,-484.58,0.000427,4]
[311242271,1704990656203,-484.58,0.000427,4]
[311242272,1704990656212,-484.58,0.000427,4]
[311242273,1704990656222,-484.58,0.000427,4]
[311242274,1704990656232,-484.58,0.000427,4]
[311242275,1704990656242,-484.58,0.000427,4]
[311242276,1704990656252,-484.58,0.000427,4]
[311242277,1704990656261,-484.58,0.000427,4]
[311242278,1704990656271,-484.58,0.000427,4]
[311242279,1704990656281,-484.58,0.000427,4]
[311242280,1704990656291,-484.58,0.000427,4]
[311242281,1704990656301,-484.58,0.000427,4]
[311242282,1704990656311,-484.58,0.000427,4]
[311242283,1704990656320,-484.58,0.000427,4]
[311242284,1704990656335,-484.58,0.000427,4]
[311242285,1704990656348,-484.58,0.000427,4]
[311242286,1704990656358,-484.58,0.000427,4]
[311242287,1704990656370,-242.09863262,0.00042703,30]
[311242288,1704990656382,-164.30442535,0.00042724,30]
[311242289,1704990656392,-152.0,0.00042753,3]
[311242290,1704990656404,-150.0,0.00042768,4]
[311242291,1704990656415,-150.0,0.00042768,4]
[311242292,1704990656425,-318.0,0.00042838,2]
[311242293,1704990656434,-4167.0,0.00042838,2]
[311242294,1704990656445,-8080.0,0.00042838,2]
[311242295,1704990656457,-18404.07,0.00042838,2]
[311242296,1704990656468,-2353.179,0.00042838,2]
[311242297,1704990656480,-1355.0,0.00042838,2]
[311242298,1704990656490,-242.09863262,0.00042871,30]
[311242299,1704990656500,-8179.9718818,0.00042891,7]
[311242300,1704990656510,-571.79650271,0.00042891,7]
[311242301,1704990656520,-720.4763373,0.00042897,10]
[311242302,1704990656530,-500.0,0.00042905,7]
[311242303,1704990656540,-500.0,0.00042905,7]
[311242304,1704990656550,-500.0,0.00042905,7]
[311242305,1704990656560,-1000.0,0.00042945,2]
[311242306,1704990656572,-289.72387328,0.00042945,2]
[311242307,1704990656581,-400.0,0.00042959,120]
[311242308,1704990656596,-500.0,0.00042987,22]
[311242309,1704990656606,-200.0,0.00042987,15]
[311242310,1704990656616,-100000.0,0.00043,13]
[311242311,1704990656627,-300.0,0.00043,5]
[311242312,1704990656636,-300.0,0.00043,5]
[311242313,1704990656647,-367.75429521,0.00043,120]
[311242314,1704990656657,-34514.65719953,0.00043,2]
[311242315,1704990656667,-2138.26955928,0.00043,30]
[311242316,1704990656677,-55994.09835567,0.00043,30]
[311242317,1704990656687,-567.28855369,0.00043,2]
[311242318,1704990656696,-1000.0,0.00043,120]
[311242319,1704990656707,-5000.0,0.00043,35]
[311242320,1704990656716,-800.0,0.00043,3]
[311242321,1704990656726,-3000.0,0.00043,40]
[311242322,1704990656737,-1000.0,0.000431,2]
[311242323,1704990656746,-150.0,0.00043151,90]
[311242324,1704990656756,-500.0,0.00043179,7]
[311242325,1704990656766,-500.0,0.00043179,7]
[311242326,1704990656777,-2310.21,0.000432,7]
[311242327,1704990656787,-3410.01,0.000432,7]
[311242328,1704990656797,-242.09863262,0.00043223,30]
[311242329,1704990656807,-150.0,0.00043259,2]
[311242330,1704990656817,-150.0,0.00043263,4]
[311242331,1704990656827,-150.0,0.00043263,4]
[311242332,1704990656837,-162.0,0.0004337,120]
[311242333,1704990656850,-162.0,0.0004338,120]
[311242334,1704990656861,-126268.31396387,0.0004339,7]
[311242335,1704990656870,-162.0,0.0004339,120]
[311242336,1704990656881,-1000.0,0.00043434,15]
[311242337,1704990656891,-1000.0,0.00043434,15]
[311242338,1704990656900,-1000.0,0.00043434,15]
[311242339,1704990656909,-242.09863262,0.0004345,30]
[311242340,1704990656919,-500.0,0.00043452,7]
[311242341,1704990656928,-500.0,0.00043452,7]
[311242342,1704990656938,-350.0,0.00043452,120]
[311242343,1704990656947,-302.78,0.0004347,2]
[311242344,1704990656957,-161.82,0.0004347,2]
[311242345,1704990656967,-293.84,0.0004347,2]
[311242346,1704990656976,-293.84,0.0004347,2]
[311242347,1704990656986,-293.84,0.0004347,2]
[311242348,1704990656996,-293.84,0.0004347,2]
[311242349,1704990657005,-293.84,0.0004347,2]
[311242350,1704990657015,-245.95,0.0004347,2]
[311242351,1704990657025,-205.0,0.00043471,2]
[311242352,1704990657035,-2000.0,0.000435,24]
[311242353,1704990657044,-10389.0,0.00043542,30]
[311242354,1704990657055,-242.09863262,0.00043614,30]
[311242355,1704990657065,-156.76141992,0.00043663,30]
[311242356,1704990657075,-15337.92421533,0.00043668,5]
[311242357,1704990657085,-247.6,0.00043677,2]
[311242358,1704990657097,-881.31,0.00043689,2]
[311242359,1704990657107,-500.0,0.00043725,7]
[311242360,1704990657117,-500.0,0.00043725,7]
[311242361,1704990657127,-2138.76,0.0004374,2]
[311242362,1704990657137,-150.0,0.00043758,4]
[311242363,1704990657147,-150.0,0.00043758,4]
[311242364,1704990657157,-2310.21,0.000438,7]
[311242365,1704990657166,-3410.01,0.000438,7]
[311242366,1704990657176,-6794.69181514,0.000438,5]
[311242367,1704990657186,-500.0,0.00043835,30]
[311242368,1704990657195,-500.0,0.00043835,30]
[311242369,1704990657205,-250.0,0.00043835,10]
[311242370,1704990657215,-3000.0,0.00043835,120]
[311242371,1704990657225,-550.0,0.00043835,7]
[311242372,1704990657234,-1555.82057583,0.00043835,6]
[311242373,1704990657243,-1813.81,0.00043835,5]
[311242374,1704990657253,-2209.71,0.00043836,14]
[311242375,1704990657263,-2156.55982993,0.00043843,5]
[311242376,1704990657272,-242.09863262,0.00043881,30]
[311242377,1704990657282,-155.0,0.000439,2]
[311242378,1704990657291,-400.0,0.00043945,120]
[311242379,1704990657301,-200.0,0.00043946,30]
[311242380,1704990657311,-800.0,0.00043946,30]
[311242381,1704990657322,-162.0,0.0004397,120]
[311242382,1704990657331,-500.0,0.00043972,10]
[311242383,1704990657340,-3000.0,0.00043972,120]
[311242384,1704990657354,-162.0,0.0004398,120]
[311242385,1704990657364,-500.0,0.00043987,23]
[311242386,1704990657374,-200.0,0.00043987,17]
[311242387,1704990657384,-162.0,0.0004399,120]
[311242388,1704990657394,-210.0,0.0004399,120]
[311242389,1704990657403,-10389.0,0.00043991,30]
[311242390,1704990657413,-500.0,0.00043998,7]
[311242391,1704990657423,-500.0,0.00043998,7]
[311242392,1704990657432,-66163.51591145,0.00044,14]
[311242393,1704990657446,-468.96,0.00044,14]
[311242394,1704990657458,-2579.6,0.00044,14]
[311242395,1704990657474,-425.99570167,0.00044,14]
[311242396,1704990657486,-296.25000518,0.00044,14]
[311242397,1704990657497,-643.62500001,0.00044,14]
[311242398,1704990657511,-3682.5,0.00044,14]
[311242399,1704990657522,-12849.5,0.00044,14]
[311242400,1704990657534,-12890.05338169,0.00044,14]
[311242401,1704990657544,-151.0,0.00044,14]
[311242402,1704990657554,-151.0,0.00044,14]
[311242403,1704990657564,-151.0,0.00044,14]
[311242404,1704990657574,-151.0,0.00044,14]
[311242405,1704990657584,-151.0,0.00044,14]
[311242406,1704990657597,-179.773755,0.00044,14]
[311242407,1704990657608,-179.773755,0.00044,14]
[311242408,1704990657618,-151.0,0.00044,14]
[311242409,1704990657628,-151.0,0.00044,14]
[311242410,1704990657640,-1006.74287842,0.00044,120]
[311242411,1704990657650,-800.0,0.00044,2]
[311242412,1704990657661,-184.0,0.00044,90]
[311242413,1704990657672,-5000.0,0.00044,40]
[311242414,1704990657684,-3000.00000099,0.00044,45]
[311242415,1704990657694,-190.25,0.00044018,2]
[311242416,1704990657705,-150.0,0.00044018,2]
[311242417,1704990657715,-150.0,0.00044018,2]
[311242418,1704990657725,-19673.0,0.00044049,2]
[311242419,1704990657736,-834.0,0.00044049,2]
[311242420,1704990657746,-944.0,0.00044049,2]
[311242421,1704990657757,-1234.0,0.00044049,2]
[311242422,1704990657768,-1251.0,0.00044049,2]
[311242423,1704990657778,-1058.8,0.00044085,15]
[311242424,1704990657788,-1000.0,0.000441,2]
[311242425,1704990657798,-500.0,0.00044109,30]
[311242426,1704990657808,-750.0,0.00044109,10]
[311242427,1704990657818,-3000.0,0.00044109,120]
[311242428,1704990657829,-550.0,0.00044109,7]
[311242429,1704990657839,-242.09863262,0.00044175,30]
[311242430,1704990657858,-452.82276441,0.00044246,10]
[311242431,1704990657868,-3000.0,0.00044246,120]
[311242432,1704990657879,-150.0,0.00044253,4]
[311242433,1704990657889,-150.0,0.00044253,4]
[311242434,1704990657899,-204.0,0.00044268,35]
[311242435,1704990657909,-500.0,0.00044271,7]
[311242436,1704990657920,-500.0,0.00044271,7]
[311242437,1704990657930,-127354.27933147,0.000443,30]
[311242438,1704990657976,-25654.02838265,0.000443,30]
[311242439,1704990657996,-13915.90996126,0.000443,30]
[311242440,1704990658006,-151.0,0.000443,14]
[311242441,1704990658016,-150.0,0.0004434,2]
[311242442,1704990658025,-1098.40051442,0.00044383,120]
[311242443,1704990658035,-550.0,0.00044383,7]
[311242444,1704990658044,-7078.19410688,0.0004444,30]
[311242445,1704990658056,-295.95904071,0.0004444,30]
[311242446,1704990658068,-3014.84685241,0.0004444,30]
[311242447,1704990658078,-156.76141992,0.00044464,30]
[311242448,1704990658087,-597.50549141,0.0004447,3]
[311242449,1704990658103,-574.70626134,0.0004449,30]
[311242450,1704990712718,205.6254,0.00022931,2]
[311242451,1704990719606,1070.1555,0.00022931,2]
[311242455,1704990811067,243.46254462,0.00022931,2]
[311242459,1704991462326,498.14,0.00021876,2]
[311242460,1704991560001,255.84,0.00023009,2]
[311242461,1704991590125,1096.92,0.00023036,2]
[311242462,1704991627102,-376.37438673,0.00023153,2]
[311242463,1704991627125,-1366.47280272,0.00023154,2]
[311242465,1704991652597,212.53,0.00022841,2]
[311242467,1704991697124,446.92630179,0.00020599,2]
[311242468,1704991702460,3186.46864652,0.00022219,2]
[311242469,1704991705677,419.33476208,0.00022219,2]
[311242471,1704991711017,23900.0,0.00022709,2]
[311242477,1704991768105,-486.28507678,0.00023137,2]
[311242478,1704991768125,-872.77630199,0.00023137,2]
[311242479,1704991768146,-50.17862123,0.00023137,2]
[311242484,1704991788470,874.43633455,0.0002198,2]
[311242485,1704991796484,155.21,0.00022858,2]
[311242486,1704991798113,375.47,0.00022632,2]
[311242560,1704991833285,-220.10726553,0.00023126,2]
[311242561,1704991833294,-43.65783282,0.00023126,2]
[311242562,1704991833305,-244.85922039,0.00023126,2]
[311242563,1704991833346,-680.18717961,0.00023127,2]
[311242564,1704991833358,-410.6102,0.00023127,2]
[311242565,1704991833370,-2049.68589056,0.00023127,2]
[311242566,1704991833380,-527.17427812,0.00023128,2]
[311242567,1704991833390,-2017.69016121,0.00023128,2]
[311242568,1704991833399,-376.70044638,0.00023129,2]
[311242569,1704991833409,-2776.59380219,0.00023129,2]
[311242570,1704991833418,-354.05283891,0.00023129,2]
[311242571,1704991833428,-492.61820646,0.0002313,2]
[311242572,1704991833437,-266.2165356,0.0002313,2]
[311242573,1704991833447,-300.87488751,0.00023133,2]
[311242574,1704991833456,-301.84442122,0.00023133,2]
[311242575,1704991833465,-244.59141132,0.00023133,2]
[311242576,1704991833474,-1201.89770384,0.00023133,2]
[311242577,1704991833484,-2897.77192156,0.00023133,2]
[311242578,1704991833493,-11665.07202429,0.00023133,2]
[311242579,1704991833502,-733.40365513,0.00023133,2]
[311242580,1704991833522,-7116.10568426,0.00023133,2]
[311242581,1704991833534,-6009.02095026,0.00023133,2]
[311242582,1704991833546,-415.03901403,0.00023133,2]
[311242583,1704991833557,-2055.44954774,0.00023133,2]
[311242584,1704991833568,-927.34,0.00023133,2]
[311242585,1704991833580,-600.0,0.00023133,2]
[311242586,1704991833591,-1132.10834627,0.00023133,2]
[311242587,1704991833601,-230.27515087,0.00023134,2]
[311242588,1704991833610,-523.09304668,0.00023134,2]
[311242589,1704991833620,-4346.25511422,0.00023134,2]
[311242590,1704991833629,-124.75917167,0.00023135,2]
[311242591,1704991833640,-259.33377645,0.00023135,2]
[311242592,1704991833649,-399.97788808,0.00023135,2]
[311242593,1704991833659,-514.86735764,0.00023135,2]
[311242594,1704991833668,-1003.6282308,0.00023135,2]
[311242595,1704991833699,-9538.27426744,0.00023135,2]
[311242596,1704991833708,-949.82137877,0.00023137,2]
[311242597,1704991833718,-467.37893859,0.00023137,2]
[311242598,1704991833727,-456.79854528,0.00023144,2]
[311242599,1704991833736,-887.73277679,0.00023145,2]
[311242600,1704991833745,-841.95154834,0.00023145,2]
[311242601,1704991833755,-524.45762012,0.00023145,2]
[311242602,1704991833764,-3774.06203896,0.00023145,2]
[311242603,1704991833777,-42943.64418819,0.00023145,2]
[311242604,1704991833786,-794.73,0.00023145,2]
[311242605,1704991833796,-300.0,0.00023147,2]
[311242606,1704991833805,-150.0,0.00023147,2]
[311242607,1704991833815,-2943.34420832,0.00023148,2]
[311242608,1704991833827,-650.81684476,0.0002315,2]
[311242609,1704991833837,-326.58918329,0.0002315,2]
[311242611,1704991833847,-10510.83827202,0.0002315,2]
[311242613,1704991833856,-43028.361123,0.00023152,2]
[311242615,1704991833866,-382.27007557,0.00023153,2]
[311242617,1704991833876,-228.80942266,0.00023155,2]
[311242619,1704991833885,-1096.92,0.00023157,2]
[311242621,1704991833894,-1096.92,0.00023278,2]
[311242623,1704991833903,-1096.92,0.00023399,2]
[311242625,1704991833912,-1096.92,0.00023521,2]
[311242626,1704991833921,-150.99,0.00023614,2]
[311242627,1704991833930,-167.0,0.00023614,2]
[311242628,1704991833939,-1484.31,0.00023614,2]
[311242629,1704991833949,-6496.62,0.00023614,2]
[311242631,1704991833959,-212.83,0.00023621,2]